bitfinex/quotes_BTCUSD_20220205
["timestamp","ask_amount","ask_price","bid_price","bid_amount"]
[1644061680955,0.26879498,41488.0,41479.0,0.1]
[1644061681156,0.2691404,41488.0,41479.0,0.1]
[1644061681355,0.060272,41486.0,41479.0,0.1]
[1644061681555,0.06061687,41487.0,41481.0,0.23598876]
[1644061681754,0.06027145,41487.0,41481.0,0.23598876]
[1644061681956,0.00071551,41486.0,41481.0,0.23598876]
[1644061682154,0.00106093,41486.0,41481.0,0.23598876]
[1644061682756,0.00034542,41487.0,41481.0,0.23598876]
[1644061682961,0.00071883,41486.0,41481.0,0.23598876]
[1644061683957,0.00034542,41487.0,41481.0,0.23598876]
[1644061684158,0.00071883,41486.0,41481.0,0.23598876]
[1644061685213,0.00034542,41487.0,41481.0,0.23598876]
[1644061685415,0.00071883,41486.0,41481.0,0.23598876]
[1644061686317,0.00034542,41489.0,41481.0,0.29625076]
[1644061686519,0.00034542,41486.0,41481.0,0.29625076]
[1644061686718,0.00071829,41486.0,41481.0,0.29625076]
[1644061686917,0.00071829,41486.0,41485.0,0.20938696]
[1644061687520,0.00034542,41489.0,41485.0,0.20938696]
[1644061687721,0.00034542,41487.0,41485.0,0.20938696]
[1644061687918,0.00071805,41488.0,41485.0,0.20938696]
[1644061688764,0.00034542,41490.0,41485.0,0.20938696]
[1644061688962,0.00071804,41489.0,41486.0,0.120506]
[1644061689364,0.00071804,41489.0,41488.0,0.24580369]
[1644061689963,0.00034542,41490.0,41488.0,0.24580369]
[1644061690163,0.20613715,41491.0,41488.0,0.24580369]
[1644061690362,0.00034542,41490.0,41488.0,0.24580369]
[1644061690562,0.45,41490.0,41488.0,0.20995299]
[1644061690866,0.00034542,41490.0,41488.0,0.20995299]
[1644061691062,0.00034542,41491.0,41488.0,0.20995299]
[1644061691264,0.00034542,41490.0,41488.0,0.27020399]
[1644061691464,0.00106407,41491.0,41488.0,0.27020399]
[1644061691664,0.00071865,41491.0,41488.0,0.27020399]
[1644061692306,0.00071865,41491.0,41488.0,0.33045165]
[1644061692605,0.00034542,41493.0,41488.0,0.33045165]
[1644061692806,0.01839556,41494.0,41488.0,0.33045165]
[1644061692807,0.00071864,41492.0,41488.0,0.38045165]
[1644061693207,0.00071864,41492.0,41488.0,0.39852665]
[1644061693412,0.00071864,41492.0,41488.0,0.32020399]
[1644061693610,0.00034542,41493.0,41488.0,0.32020399]
[1644061693809,0.00034542,41493.0,41489.0,0.060247]
[1644061694010,0.00071855,41492.0,41489.0,0.060247]
[1644061694611,0.00071855,41492.0,41490.0,0.060248]
[1644061694812,0.00034542,41493.0,41490.0,0.060248]
[1644061695012,0.00034542,41494.0,41492.0,0.25381288]
[1644061695214,0.00071854,41493.0,41492.0,0.25381288]
[1644061695856,0.00071854,41493.0,41492.0,0.31405688]
[1644061696060,0.00034542,41494.0,41492.0,0.31405688]
[1644061696257,0.00071852,41495.0,41492.0,0.37430088]
[1644061696759,0.00106394,41495.0,41492.0,0.37430088]
[1644061696958,0.00071852,41495.0,41492.0,0.37430088]
[1644061697157,0.00034542,41495.0,41492.0,0.31405688]
[1644061697359,0.20541859,41496.0,41492.0,0.31405688]
[1644061697561,0.00034542,41495.0,41492.0,0.31405688]
[1644061697759,0.2061371,41496.0,41492.0,0.31405688]
[1644061697961,0.00034542,41495.0,41492.0,0.25381288]
[1644061698159,0.20648252,41496.0,41492.0,0.25381288]
[1644061698360,0.00034542,41495.0,41492.0,0.25381288]
[1644061698563,0.20541859,41496.0,41492.0,0.25381288]
[1644061698760,0.00034542,41495.0,41492.0,0.25381288]
[1644061698960,0.20648252,41496.0,41492.0,0.25381288]
[1644061699161,0.00034542,41495.0,41492.0,0.25381288]
[1644061699418,0.2061371,41496.0,41492.0,0.25381288]
[1644061699619,0.00034542,41495.0,41492.0,0.25381288]
[1644061699820,0.20576401,41496.0,41492.0,0.25381288]
[1644061700020,0.00034542,41495.0,41492.0,0.25381288]
[1644061700217,0.00071852,41496.0,41492.0,0.31405488]
[1644061700419,0.00106394,41496.0,41492.0,0.37429788]
[1644061700818,0.00034542,41496.0,41492.0,0.37429788]
[1644061701019,0.20541859,41497.0,41492.0,0.37429788]
[1644061701227,0.00106393,41496.0,41492.0,0.37429788]
[1644061701421,0.00071851,41496.0,41492.0,0.37429788]
[1644061701622,0.00106393,41496.0,41492.0,0.37429788]
[1644061702122,0.00034542,41496.0,41492.0,0.37429788]
[1644061702320,0.20541859,41497.0,41492.0,0.37429788]
[1644061702520,0.00106393,41496.0,41492.0,0.37429788]
[1644061702722,0.00071851,41496.0,41492.0,0.37429788]
[1644061702921,0.00106393,41496.0,41492.0,0.37429788]
[1644061703159,0.00106393,41496.0,41493.0,0.04999999]
[1644061703359,0.00034542,41498.0,41494.0,0.060238]
[1644061703559,0.00071851,41496.0,41494.0,0.11023799]
[1644061703761,0.00071851,41496.0,41494.0,0.110238]
[1644061703960,0.00106393,41496.0,41494.0,0.110238]
[1644061704258,0.00071851,41496.0,41494.0,0.060238]
[1644061704460,0.00034542,41498.0,41494.0,0.060238]
[1644061704657,0.00034542,41496.0,41494.0,0.1204746]
[1644061704857,0.02,41499.0,41494.0,0.1204746]
[1644061704858,0.0007185,41497.0,41494.0,0.1807116]
[1644061705761,0.00034542,41498.0,41495.0,0.04999999]
[1644061705959,0.02,41499.0,41495.0,0.04999999]
[1644061706262,0.00106391,41498.0,41496.0,0.060238]
[1644061706460,0.00071849,41498.0,41496.0,0.060238]
[1644061706659,0.00106391,41498.0,41496.0,0.060238]
[1644061706912,0.00106391,41498.0,41493.0,0.05]
[1644061707112,0.00034542,41498.0,41493.0,0.05]
[1644061707313,0.02071848,41499.0,41493.0,0.05]
[1644061707512,0.00034542,41498.0,41493.0,0.05]
[1644061707712,0.02071848,41499.0,41493.0,0.05]
[1644061707911,0.02036034,41499.0,41493.0,0.05]
[1644061708112,0.01964186,41499.0,41492.0,0.25381288]
[1644061708513,0.00071849,41498.0,41492.0,0.25381288]
[1644061709312,0.00071849,41498.0,41492.0,0.36405687]
[1644061709512,0.01964186,41499.0,41492.0,0.36405687]
[1644061709712,0.0007185,41497.0,41492.0,0.36405687]
[1644061709912,0.0007185,41497.0,41492.0,0.30381287]
[1644061710562,0.01964186,41499.0,41493.0,0.060241]
[1644061710963,0.0007185,41497.0,41493.0,0.060241]
[1644061711764,0.16964186,41499.0,41493.0,0.060241]
[1644061712165,0.0007185,41497.0,41493.0,0.060241]
[1644061712365,0.0007185,41497.0,41494.0,0.060238]
[1644061712565,0.0007185,41497.0,41493.0,0.060241]
[1644061712966,0.01964186,41499.0,41492.0,0.30381287]
[1644061713167,0.01964186,41499.0,41492.0,0.25381288]
[1644061713366,0.0007185,41497.0,41492.0,0.31405288]
[1644061713765,0.0007185,41497.0,41492.0,0.25381288]
[1644061714170,0.01964186,41499.0,41492.0,0.25381288]
[1644061714408,0.0007185,41497.0,41492.0,0.25381288]
[1644061715408,0.01964186,41499.0,41492.0,0.25381288]
[1644061715609,0.0007185,41497.0,41492.0,0.25381288]
[1644061716008,0.0007185,41497.0,41492.0,0.31405288]
[1644061716608,0.01964186,41499.0,41492.0,0.37429288]
[1644061716813,0.01964186,41499.0,41492.0,0.30381287]
[1644061717010,0.0007185,41497.0,41492.0,0.30381287]
[1644061717608,0.0007185,41497.0,41493.0,0.07339132]
[1644061717810,0.01964186,41499.0,41493.0,0.07339132]
[1644061718060,0.0007185,41497.0,41492.0,0.30381287]
[1644061719061,0.01964186,41499.0,41492.0,0.38031151]
[1644061719263,0.0007185,41497.0,41492.0,0.25381288]
[1644061720172,0.0007185,41497.0,41477.0,0.31001445]
[1644061720173,0.00674429,41489.0,41477.0,0.31001445]
[1644061720469,0.05,41475.0,41471.0,0.31001445]
[1644061720668,0.2,41472.0,41470.0,0.00287588]
[1644061720867,0.2,41472.0,41465.0,0.00071906]
[1644061720868,0.35,41471.0,41465.0,0.00071906]
[1644061721068,0.35,41471.0,41451.0,0.09578078]
[1644061721069,0.060313,41463.0,41451.0,0.09578078]
[1644061721266,0.060313,41463.0,41452.0,0.31126012]
[1644061721267,0.05,41456.0,41452.0,0.31126012]
[1644061721466,0.1981,41455.0,41453.0,0.00328618]
[1644061721667,0.15,41455.0,41453.0,0.00328618]
[1644061721922,0.0481,41454.0,41453.0,0.00328618]
[1644061722620,0.15,41455.0,41453.0,0.00328618]
[1644061722821,0.27061717,41455.0,41453.0,0.00328618]
[1644061723219,0.93696715,41454.0,41453.0,0.00328618]
[1644061723420,1.03696715,41454.0,41453.0,0.00328618]
[1644061723623,0.93696715,41454.0,41453.0,0.00328618]
[1644061723820,0.6489,41454.0,41453.0,0.00328618]
[1644061725223,0.0481,41454.0,41453.0,0.00328618]
[1644061730116,0.0481,41454.0,41453.0,0.07918437]
[1644061730312,0.0481,41454.0,41453.0,0.12918436]
[1644061730612,0.0481,41454.0,41453.0,0.41080537]
[1644061731012,0.0481,41454.0,41453.0,0.07918437]
[1644061731614,0.0481,41454.0,41453.0,0.00328618]
[1644061732513,0.0481,41454.0,41453.0,0.05328617]
[1644061732719,0.15,41456.0,41453.0,0.38490717]
[1644061732915,0.0481,41463.0,41454.0,0.331621]
[1644061733164,0.15,41456.0,41454.0,0.2732612]
[1644061734163,0.2,41456.0,41454.0,0.00018618]
[1644061734366,0.2,41456.0,41453.0,0.0031]
[1644061734367,0.3481,41455.0,41453.0,0.0039934]
[1644061734565,0.3481,41455.0,41452.0,9.34e-05]
[1644061734566,0.75,41454.0,41452.0,9.34e-05]
[1644061734765,0.0981,41453.0,41452.0,0.00027963]
[1644061734963,0.7,41452.0,41450.0,5.64303775]
[1644061735165,0.1981,41451.0,41450.0,5.64303775]
[1644061735565,0.418765,41451.0,41450.0,5.64303775]
[1644061735767,0.518765,41451.0,41450.0,5.64303775]
[1644061735964,0.68440666,41451.0,41450.0,5.64303775]
[1644061736164,0.518765,41451.0,41450.0,5.64303775]
[1644061736569,0.81727735,41451.0,41450.0,5.64303775]
[1644061736827,0.69661235,41451.0,41450.0,5.63103775]
[1644061737022,0.92258201,41451.0,41450.0,5.63103775]
[1644061739125,1.12258201,41451.0,41450.0,5.63103775]
[1644061739728,0.92258201,41451.0,41450.0,5.63103775]
[1644061740128,0.92258201,41451.0,41450.0,5.50678241]
[1644061740329,0.97258201,41451.0,41450.0,5.50678241]
[1644061740760,1.17258201,41451.0,41450.0,5.50678241]
[1644061741161,0.92258201,41451.0,41450.0,5.50678241]
[1644061741363,1.47258201,41451.0,41450.0,5.50678241]
[1644061741561,1.42258201,41451.0,41450.0,5.50678241]
[1644061742764,1.12406966,41451.0,41450.0,5.50678241]
[1644061743070,0.85042811,41451.0,41450.0,5.50678241]
[1644061743264,0.90042811,41451.0,41450.0,5.50678241]
[1644061743865,0.70042811,41451.0,41450.0,5.50678241]
[1644061745209,0.85042811,41451.0,41450.0,5.50678241]
[1644061746411,0.52406966,41451.0,41450.0,5.50678241]
[1644061746712,0.358428,41451.0,41450.0,5.50678241]
[1644061746910,0.258428,41451.0,41450.0,5.50678241]
[1644061747109,0.2981,41451.0,41450.0,5.50678241]
[1644061747310,0.15,41451.0,41450.0,5.50678241]
[1644061747911,0.15,41453.0,41450.0,5.50678241]
[1644061748162,0.06031334,41456.0,41452.0,0.23652806]
[1644061748358,0.15,41453.0,41452.0,0.23652806]
[1644061748757,0.15,41453.0,41451.0,0.00071829]
[1644061749759,0.06031002,41459.0,41450.0,5.50678241]
[1644061749968,0.06031002,41459.0,41451.0,0.00018624]
[1644061750161,0.15,41453.0,41452.0,0.21754424]
[1644061750559,0.15,41453.0,41451.0,0.16480449]
[1644061750959,0.15,41453.0,41451.0,0.21499072]
[1644061751564,0.15,41453.0,41452.0,0.07018771]
[1644061752610,0.15,41453.0,41452.0,0.04999999]
[1644061753210,0.15,41453.0,41450.0,5.50750333]
[1644061753414,0.15,41453.0,41452.0,0.04999999]
[1644061753611,0.15,41453.0,41451.0,0.24211703]
[1644061753810,0.15,41453.0,41452.0,0.04999999]
[1644061754211,0.15,41453.0,41452.0,0.05018623]
[1644061754410,0.15,41453.0,41452.0,0.00018624]
[1644061754610,0.15,41453.0,41452.0,0.04999999]
[1644061755212,0.15,41453.0,41450.0,5.50750313]
[1644061755414,0.06031168,41456.0,41450.0,5.50750313]
[1644061755661,0.15,41455.0,41452.0,0.04999999]
[1644061755862,0.36797016,41461.0,41452.0,0.04999999]
[1644061756069,0.1,41461.0,41460.0,0.04999999]
[1644061756264,0.00072053,41462.0,41461.0,0.07010444]
[1644061756663,0.00072053,41462.0,41456.0,0.0481]
[1644061757164,0.00072053,41462.0,41452.0,0.04999999]
[1644061757362,0.00072053,41462.0,41456.0,0.04999999]
[1644061757563,0.060313,41461.0,41456.0,0.04999999]
[1644061757763,0.25203825,41460.0,41456.0,0.04999999]
[1644061758063,0.25203825,41460.0,41451.0,0.30072078]
[1644061758261,0.25203825,41460.0,41453.0,0.07354382]
[1644061758463,0.25203825,41460.0,41456.0,0.04999999]
[1644061758861,0.25203825,41460.0,41454.0,0.04999999]
[1644061759315,0.1,41461.0,41457.0,0.04999999]
[1644061759810,0.060308,41465.0,41459.0,0.07078792]
[1644061760009,0.00072059,41462.0,41453.0,0.21829106]
[1644061760212,0.20209185,41462.0,41454.0,0.04999999]
[1644061760611,0.20209185,41462.0,41451.0,0.05072077]
[1644061760811,0.060309,41460.0,41451.0,0.04999999]
[1644061761012,0.060309,41460.0,41454.0,0.12279357]
[1644061761613,0.060309,41460.0,41454.0,0.07279358]
[1644061761812,0.060309,41460.0,41454.0,0.12279357]
[1644061762013,0.060309,41460.0,41454.0,0.07279358]
[1644061762212,0.06030896,41459.0,41453.0,0.04999999]
[1644061762411,0.06030896,41459.0,41451.0,0.27219789]
[1644061762412,0.18093996,41459.0,41451.0,0.27219789]
[1644061762611,0.06030896,41459.0,41455.0,0.04999999]
[1644061763661,0.06030896,41459.0,41451.0,0.32219788]
[1644061763868,0.06030896,41459.0,41453.0,0.07735236]
[1644061764063,0.06030896,41459.0,41453.0,0.08150673]
[1644061764264,0.06030896,41459.0,41453.0,0.06316935]
[1644061764664,0.06030896,41459.0,41455.0,0.04999999]
[1644061765065,0.06030896,41459.0,41451.0,0.24906145]
[1644061765266,0.06030896,41459.0,41458.0,0.04999999]
[1644061765967,0.30205588,41462.0,41458.0,0.11349766]
[1644061766167,0.20205588,41462.0,41458.0,0.11349766]
[1644061766372,0.30205588,41462.0,41458.0,0.06349767]
[1644061767010,0.30205588,41462.0,41458.0,0.31897162]
[1644061767211,0.20137126,41462.0,41461.0,0.04999999]
[1644061767415,0.00068462,41462.0,41458.0,0.31897162]
[1644061767712,0.00068462,41462.0,41460.0,0.04999999]
[1644061768312,0.1,41464.0,41458.0,0.31897162]
[1644061768514,0.00068491,41463.0,41458.0,0.56827527]
[1644061769314,0.1,41465.0,41461.0,0.04999999]
[1644061769714,0.00068491,41463.0,41461.0,0.04999999]
[1644061770664,0.205045,41466.0,41462.0,0.27596262]
[1644061770870,0.205045,41470.0,41465.0,0.11325563]
[1644061771065,0.205045,41472.0,41465.0,0.11325563]
[1644061771265,0.205045,41473.0,41467.0,0.04999999]
[1644061771469,0.205045,41472.0,41467.0,0.04999999]
[1644061771666,0.43003421,41472.0,41467.0,0.04999999]
[1644061771865,0.43003421,41472.0,41466.0,0.24394469]
[1644061771866,0.205045,41472.0,41466.0,0.24394469]
[1644061772066,0.205045,41474.0,41471.0,0.04999999]
[1644061772365,0.00072117,41472.0,41471.0,0.04999999]
[1644061772967,0.01835714,41475.0,41471.0,0.04999999]
[1644061773365,0.00072115,41474.0,41472.0,0.07472841]
[1644061774170,0.01835714,41475.0,41472.0,0.07472841]
[1644061774410,0.01907754,41475.0,41472.0,0.07472841]
[1644061775407,0.01907754,41475.0,41471.0,0.04999999]
[1644061775408,0.01835714,41475.0,41471.0,0.04999999]
[1644061776410,0.20267537,41476.0,41471.0,0.04999999]
[1644061776610,0.40699998,41476.0,41471.0,0.04999999]
[1644061777011,0.0007204,41475.0,41471.0,0.04999999]
[1644061777811,0.20195498,41476.0,41468.0,0.06711813]
[1644061778058,0.20195498,41476.0,41466.0,0.57728552]
[1644061778059,0.06100266,41475.0,41466.0,0.57728552]
[1644061778258,0.06100266,41475.0,41470.0,0.04999999]
[1644061779060,0.06028344,41475.0,41470.0,0.04999999]
[1644061779260,0.06100267,41475.0,41470.0,0.04999999]
[1644061780160,0.06028344,41475.0,41466.0,0.28900729]
[1644061780360,0.06028344,41475.0,41467.0,0.07377331]
[1644061780561,0.06100267,41475.0,41470.0,0.04999999]
[1644061780762,0.55,41474.0,41466.0,0.04999999]
[1644061780961,0.55,41474.0,41467.0,0.06943726]
[1644061781162,0.06100267,41475.0,41467.0,0.06943726]
[1644061781563,0.56287812,41476.0,41469.0,0.04999999]
[1644061781816,0.00071932,41473.0,41469.0,0.04999999]
[1644061782610,0.56287812,41476.0,41469.0,0.04999999]
[1644061783011,0.00071932,41473.0,41469.0,0.04999999]
[1644061783812,0.56287812,41476.0,41469.0,0.04999999]
[1644061784011,0.00071932,41473.0,41469.0,0.04999999]
[1644061785012,0.56287812,41476.0,41469.0,0.04999999]
[1644061785415,0.00072063,41473.0,41469.0,0.04999999]
[1644061786264,0.56287812,41476.0,41469.0,0.04999999]
[1644061786664,0.06028299,41475.0,41469.0,0.04999999]
[1644061788063,0.060286,41474.0,41470.0,0.04999999]
[1644061788263,0.060286,41474.0,41467.0,0.04999999]
[1644061788463,0.06028684,41472.0,41467.0,0.04999999]
[1644061790117,0.06102335,41472.0,41467.0,0.04999999]
[1644061791114,0.01980203,41475.0,41471.0,0.04999999]
[1644061791316,0.00073651,41472.0,41465.0,0.33184409]
[1644061791513,0.00073651,41472.0,41471.0,0.04999999]
[1644061792415,0.20195498,41476.0,41471.0,0.04999999]
[1644061792622,0.00071777,41474.0,41471.0,0.04999999]
[1644061793563,0.20195498,41476.0,41471.0,0.04999999]
[1644061793763,0.00071775,41475.0,41474.0,0.04999999]
[1644061794765,0.20195498,41476.0,41474.0,0.04999999]
[1644061795964,0.20195498,41476.0,41469.0,0.04999999]
[1644061795965,0.26223998,41476.0,41469.0,0.04999999]
[1644061796164,0.12057122,41474.0,41469.0,0.04999999]
[1644061796821,0.06028522,41474.0,41469.0,0.04999999]
[1644061797415,0.06100425,41474.0,41469.0,0.04999999]
[1644061797616,0.12129225,41474.0,41469.0,0.04999999]
[1644061798316,0.12057322,41474.0,41469.0,0.04999999]
[1644061798518,0.18157825,41474.0,41469.0,0.04999999]
[1644061799520,0.24117131,41472.0,41466.0,0.04999999]
[1644061799720,0.060292,41471.0,41466.0,0.04999999]
[1644061800327,0.32996918,41471.0,41466.0,0.04999999]
[1644061800566,0.30146331,41472.0,41461.0,0.1215]
[1644061800567,0.57627108,41470.0,41461.0,0.1215]
[1644061800770,0.57627108,41470.0,41460.0,0.04999999]
[1644061800771,0.06030069,41463.0,41460.0,0.04999999]
[1644061802366,0.12060269,41463.0,41460.0,0.04999999]
[1644061803367,0.38583663,41463.0,41460.0,0.04999999]
[1644061804169,0.38583663,41463.0,41457.0,0.05]
[1644061804414,0.38583663,41463.0,41461.0,0.04999999]
[1644061804813,0.06030069,41463.0,41461.0,0.04999999]
[1644061805417,0.31066363,41466.0,41461.0,0.04999999]
[1644061805617,0.0481,41465.0,41461.0,0.04999999]
[1644061805913,0.06099504,41464.0,41461.0,0.04999999]
[1644061806812,0.060302,41464.0,41461.0,0.04999999]
[1644061807013,0.06030069,41463.0,41461.0,0.04999999]
[1644061808061,0.06030069,41463.0,41458.0,0.04999999]
[1644061808865,0.06030069,41463.0,41462.0,0.04999999]
[1644061809265,0.06029636,41466.0,41462.0,0.26046216]
[1644061809469,0.120593,41471.0,41463.0,0.04999999]
[1644061809668,0.00029901,41466.0,41462.0,0.26046216]
[1644061810265,0.00029901,41466.0,41465.0,0.04999999]
[1644061810466,0.01836956,41471.0,41465.0,0.31786971]
[1644061810665,0.01836956,41471.0,41465.0,0.10806971]
[1644061810872,0.01836956,41471.0,41468.0,0.06375337]
[1644061811367,0.01836956,41471.0,41470.0,0.21638011]
[1644061812411,0.01836956,41471.0,41470.0,0.18862288]
[1644061812710,0.00076495,41473.0,41470.0,0.18862288]
[1644061812913,0.25504499,41475.0,41470.0,0.18862288]
[1644061813112,0.00076495,41473.0,41470.0,0.18862288]
[1644061813712,0.04999999,41471.0,41470.0,0.18862288]
[1644061814911,0.00076495,41473.0,41470.0,0.18862288]
[1644061815311,0.04999999,41475.0,41470.0,0.18862288]
[1644061815563,0.00076436,41474.0,41470.0,0.18862288]
[1644061816566,0.04999999,41475.0,41470.0,0.18862288]
[1644061816766,0.00076435,41474.0,41470.0,0.18862288]
[1644061817766,0.04999999,41475.0,41470.0,0.18862288]
[1644061817966,0.00076435,41474.0,41470.0,0.18862288]
[1644061818567,0.00076435,41474.0,41471.0,0.331621]
[1644061819070,0.04999999,41477.0,41470.0,0.18862288]
[1644061819322,0.00076435,41475.0,41470.0,0.18862288]
[1644061821423,0.04999999,41477.0,41470.0,0.18862288]
[1644061821620,0.00076435,41475.0,41470.0,0.18862288]
[1644061822620,0.04999999,41473.0,41470.0,0.18862288]
[1644061824670,0.04999999,41473.0,41468.0,0.20611039]
[1644061824870,0.04999999,41473.0,41466.0,0.20611039]
[1644061825070,0.04999999,41473.0,41465.0,0.20611039]
[1644061825469,0.04999999,41473.0,41465.0,0.15611039]
[1644061825869,0.23808982,41470.0,41465.0,0.15611039]
[1644061826072,0.23808982,41470.0,41464.0,0.23998975]
[1644061826271,0.23808982,41470.0,41462.0,0.34449194]
[1644061826473,0.23808982,41470.0,41462.0,0.25763799]
[1644061826675,0.23808982,41470.0,41459.0,0.30916558]
[1644061826676,0.23808982,41470.0,41461.0,0.25763799]
[1644061826920,0.04999999,41469.0,41461.0,0.25763799]
[1644061827121,0.04999999,41466.0,41461.0,0.25763799]
[1644061827319,0.04999999,41466.0,41460.0,0.25763799]
[1644061827519,0.04999999,41466.0,41461.0,0.331621]
[1644061828120,0.04999999,41466.0,41459.0,0.25763799]
[1644061828320,0.04999999,41466.0,41461.0,6.042e-05]
[1644061828922,0.05072304,41466.0,41461.0,6.042e-05]
[1644061829324,0.00072305,41466.0,41461.0,6.042e-05]
[1644061829721,0.50773576,41470.0,41462.0,0.331621]
[1644061829922,0.23808982,41470.0,41462.0,0.20554717]
[1644061830122,0.00072583,41466.0,41461.0,6.042e-05]
[1644061830321,0.00072583,41466.0,41462.0,0.331621]
[1644061831165,0.01972036,41467.0,41462.0,0.331621]
[1644061831367,0.00072584,41466.0,41462.0,0.331621]
[1644061832164,0.01972036,41467.0,41462.0,0.331621]
[1644061832364,0.01972036,41467.0,41461.0,6.042e-05]
[1644061832564,0.00025959,41466.0,41462.0,0.331621]
[1644061832765,0.00025959,41466.0,41465.0,0.26523694]
[1644061833367,0.05025958,41466.0,41465.0,0.26523694]
[1644061833566,0.04999999,41466.0,41465.0,0.26523694]
[1644061833867,0.04999999,41466.0,41461.0,6.042e-05]
[1644061834066,0.00071384,41468.0,41461.0,6.042e-05]
[1644061834517,0.04999999,41463.0,41461.0,6.042e-05]
[1644061834714,0.04999999,41463.0,41462.0,0.331621]
[1644061834913,0.00071385,41467.0,41461.0,6.042e-05]
[1644061835114,0.00071385,41467.0,41464.0,0.22510193]
[1644061836013,0.55080072,41470.0,41464.0,0.22510193]
[1644061836214,0.00071384,41468.0,41464.0,0.22510193]
[1644061837218,0.04999999,41469.0,41464.0,0.22510193]
[1644061837413,0.00067834,41468.0,41464.0,0.22510193]
[1644061838264,0.04999999,41469.0,41464.0,0.22510193]
[1644061838465,0.00067834,41468.0,41464.0,0.22510193]
[1644061839466,0.04999999,41469.0,41464.0,0.22510193]
[1644061839668,0.31226863,41469.0,41462.0,0.20686506]
[1644061839871,0.00067834,41468.0,41462.0,0.20686506]
[1644061840066,0.04999999,41465.0,41463.0,0.45]
[1644061840265,0.04999999,41465.0,41464.0,0.331621]
[1644061840867,0.15951834,41470.0,41462.0,0.20686506]
[1644061841067,0.26492038,41469.0,41462.0,0.18604801]
[1644061842113,0.26492038,41469.0,41463.0,0.332085]
[1644061842316,0.26492038,41469.0,41462.0,0.18604801]
[1644061842813,0.04999999,41467.0,41462.0,0.18604801]
[1644061843014,0.04999999,41467.0,41463.0,0.332085]
[1644061843414,0.26492038,41469.0,41463.0,0.332085]
[1644061843613,0.26492038,41469.0,41461.0,0.24907179]
[1644061843816,0.26492038,41469.0,41462.0,0.060288]
[1644061844018,0.04999999,41466.0,41462.0,0.060288]
[1644061844216,0.04999999,41466.0,41463.0,0.332085]
[1644061846869,0.04999999,41470.0,41463.0,0.332085]
[1644061847072,0.00071627,41470.0,41463.0,0.332085]
[1644061847268,0.00071627,41470.0,41462.0,0.31864239]
[1644061847873,0.04999999,41467.0,41462.0,0.31864239]
[1644061848069,0.02196119,41471.0,41463.0,0.332085]
[1644061848270,0.00071628,41470.0,41463.0,0.33280141]
[1644061848475,0.00071628,41470.0,41465.0,0.08953039]
[1644061848873,0.00071628,41470.0,41466.0,0.332085]
[1644061849172,0.04999999,41472.0,41466.0,0.332085]
[1644061849416,0.0007163,41470.0,41469.0,0.19082347]
[1644061850521,0.04999999,41472.0,41469.0,0.19082347]
[1644061850715,0.05071959,41472.0,41469.0,0.19082347]
[1644061851718,0.04999999,41472.0,41469.0,0.19082347]
[1644061855770,0.04999999,41472.0,41468.0,0.20687741]
[1644061855968,0.04999999,41469.0,41468.0,0.20687741]
[1644061856167,0.04999999,41469.0,41467.0,0.20687741]
[1644061860576,0.04999999,41469.0,41463.0,0.00071953]
[1644061860577,0.3,41468.0,41463.0,0.00071953]
[1644061860775,0.74999999,41464.0,41461.0,6.042e-05]
[1644061860983,0.679659,41463.0,41461.0,6.042e-05]
[1644061861173,0.3,41462.0,41461.0,6.042e-05]
[1644061861377,0.379659,41462.0,41461.0,6.042e-05]
[1644061861574,0.63810514,41462.0,41461.0,6.042e-05]
[1644061861874,0.79841814,41462.0,41461.0,6.042e-05]
[1644061862873,1.09574537,41462.0,41461.0,6.042e-05]
[1644061863276,1.14574537,41462.0,41461.0,6.042e-05]
[1644061865832,0.73729923,41462.0,41461.0,6.042e-05]
[1644061866830,0.97977172,41462.0,41461.0,6.042e-05]
[1644061867233,1.17977171,41462.0,41461.0,6.042e-05]
[1644061867433,0.06033,41458.0,41453.0,0.00018621]
[1644061867634,0.04999999,41454.0,41452.0,0.00018621]
[1644061867835,0.0481,41453.0,41451.0,0.0032508]
[1644061868084,0.23398438,41452.0,41451.0,0.00306459]
[1644061868282,0.28208438,41452.0,41451.0,0.00306459]
[1644061868786,0.55,41451.0,41450.0,4.51003321]
[1644061868982,0.64809999,41451.0,41450.0,4.509847]
[1644061869183,0.19809999,41451.0,41450.0,4.509847]
[1644061869383,0.47516754,41451.0,41450.0,4.509847]
[1644061870182,0.64083294,41451.0,41450.0,4.509847]
[1644061870384,0.47516754,41451.0,41450.0,4.509847]
[1644061870784,0.57516754,41451.0,41450.0,3.95751988]
[1644061870983,0.47516754,41451.0,41450.0,3.95751988]
[1644061872023,0.49809999,41451.0,41450.0,3.95751988]
[1644061872223,0.59809999,41451.0,41450.0,2.95751988]
[1644061872423,0.29809999,41451.0,41450.0,2.95751988]
[1644061872624,0.84889999,41451.0,41450.0,2.95751988]
[1644061872822,0.89889999,41451.0,41450.0,2.95751988]
[1644061873826,0.79889999,41451.0,41450.0,2.95751988]
[1644061875869,0.19809999,41451.0,41450.0,2.95751988]
[1644061876070,0.09809999,41451.0,41450.0,2.95751988]
[1644061881222,0.04999999,41451.0,41450.0,2.95751988]
[1644061881723,0.09809999,41451.0,41450.0,2.95751988]
[1644061884373,0.19809999,41451.0,41450.0,2.95751988]
[1644061884569,0.19809999,41451.0,41450.0,2.95251988]
[1644061884969,0.09809999,41451.0,41450.0,2.95251988]
[1644061887221,0.09809999,41451.0,41450.0,2.95346252]
[1644061889324,0.09809999,41451.0,41450.0,2.95187138]
[1644061890126,0.04999999,41451.0,41450.0,2.95187138]
[1644061893883,0.04999999,41451.0,41450.0,2.95656038]
[1644061900878,0.04999999,41451.0,41450.0,2.40425168]
[1644061904724,0.17065799,41451.0,41450.0,2.40425168]
[1644061905225,0.21875799,41451.0,41450.0,2.40425168]
[1644061906873,0.21875799,41451.0,41450.0,1.40425168]
[1644061907075,0.55031699,41451.0,41450.0,1.40425168]
[1644061907274,0.85613103,41451.0,41450.0,1.40425168]
[1644061908079,0.65031699,41451.0,41450.0,1.40425168]
[1644061908476,0.65031699,41451.0,41450.0,1.39425168]
[1644061909522,0.85613103,41451.0,41450.0,1.39425168]
[1644061909721,0.85613103,41451.0,41450.0,0.39425168]
[1644061911525,0.65031699,41451.0,41450.0,0.39425168]
[1644061913079,0.48155899,41451.0,41450.0,0.39425168]
[1644061914379,0.38155899,41451.0,41450.0,0.39425168]
[1644061914785,0.68761882,41451.0,41450.0,0.39425168]
[1644061915481,0.48155899,41451.0,41450.0,0.39425168]
[1644061915985,0.99856382,41451.0,41450.0,0.39425168]
[1644061916182,1.04666382,41451.0,41450.0,0.15639259]
[1644061916380,1.21235923,41451.0,41450.0,0.15639259]
[1644061919025,1.81315923,41451.0,41450.0,0.15639259]
[1644061920975,1.64746382,41451.0,41450.0,0.15639259]
[1644061921181,1.81316102,41451.0,41450.0,0.15639259]
[1644061922379,2.0706475,41451.0,41450.0,0.15639259]
[1644061926127,1.81316102,41451.0,41450.0,0.15639259]